bitfinex/quotes_BTCUSD_20250619
["timestamp","ask_amount","ask_price","bid_price","bid_amount"]
[1750321255877,0.24108597,105020.0,105010.0,0.30127026]
[1750321256099,0.23156416,105020.0,105010.0,0.30127026]
[1750321257837,0.24108597,105020.0,105010.0,0.30127026]
[1750321258057,0.24108588,105020.0,105010.0,0.30127026]
[1750321258621,0.23156407,105020.0,105010.0,0.30127026]
[1750321259106,0.24108579,105020.0,105010.0,0.30127026]
[1750321260289,0.2506076,105020.0,105010.0,0.30127026]
[1750321260620,0.24108579,105020.0,105010.0,0.30127026]
[1750321260851,0.23156407,105020.0,105010.0,0.30127026]
[1750321261267,0.22204253,105020.0,105010.0,0.30127026]
[1750321261710,0.21252117,105020.0,105010.0,0.30127026]
[1750321262043,0.02204262,105020.0,105010.0,0.30127026]
[1750321262381,0.02204253,105020.0,105010.0,0.30127026]
[1750321262826,0.03156407,105020.0,105010.0,0.30127026]
[1750321263519,0.02204253,105020.0,105010.0,0.30127026]
[1750321264393,0.01252117,105020.0,105010.0,0.30127026]
[1750321264623,0.02204244,105020.0,105010.0,0.30127026]
[1750321265685,0.01252117,105020.0,105010.0,0.30127026]
[1750321266149,0.02204253,105020.0,105010.0,0.30127026]
[1750321266369,0.03156407,105020.0,105010.0,0.30127026]
[1750321267178,0.02204253,105020.0,105010.0,0.30127026]
[1750321267394,0.03156416,105020.0,105010.0,0.30127026]
[1750321267599,0.03156407,105020.0,105010.0,0.30127026]
[1750321269157,0.04108588,105020.0,105010.0,0.30127026]
[1750321269415,0.0410857,105020.0,105010.0,0.30127026]
[1750321270381,0.03156407,105020.0,105010.0,0.30127026]
[1750321273223,0.0410857,105020.0,105010.0,0.30127026]
[1750321275076,0.0410857,105020.0,105010.0,0.28222565]
[1750321275300,0.05060751,105020.0,105010.0,0.44546791]
[1750321281039,0.0410857,105020.0,105010.0,0.44546791]
[1750321281476,0.05060751,105020.0,105010.0,0.44546791]
[1750321281693,0.0410857,105020.0,105010.0,0.44546791]
[1750321282423,0.03156407,105020.0,105010.0,0.44546791]
[1750321282631,0.02204253,105020.0,105010.0,0.44546791]
[1750321283143,0.003,105020.0,105010.0,0.44546791]
[1750321283303,0.01252127,105020.0,105010.0,0.44546791]
[1750321285096,0.003,105020.0,105010.0,0.44546791]
[1750321293014,0.13025034,105040.0,105030.0,0.19994277]
[1750321293213,0.3391813,105040.0,105030.0,0.19994277]
[1750321293428,0.32961513,105040.0,105030.0,0.19994277]
[1750321293641,0.32961513,105040.0,105030.0,0.20946358]
[1750321294330,0.33261513,105040.0,105030.0,0.20946358]
[1750321294531,0.32368417,105040.0,105030.0,0.20946358]
[1750321294734,0.32768417,105040.0,105030.0,0.20946358]
[1750321295815,0.31816435,105040.0,105030.0,0.19994277]
[1750321296242,0.31816435,105040.0,105030.0,0.20946367]
[1750321296504,0.31816435,105040.0,105030.0,0.19994277]
[1750321297131,0.31816435,105040.0,105030.0,0.20946367]
[1750321298220,0.31816435,105040.0,105030.0,0.21898448]
[1750321298433,0.31816435,105040.0,105030.0,0.2285052]
[1750321299097,0.31816435,105040.0,105030.0,0.23802583]
[1750321299636,0.31816435,105040.0,105030.0,0.21898448]
[1750321299858,0.31816435,105040.0,105030.0,0.20946367]
[1750321301189,0.31816435,105040.0,105030.0,0.19994277]
[1750321301627,0.30864426,105040.0,105020.0,0.26596145]
[1750321301837,0.0095209,105030.0,105020.0,0.25180462]
[1750321302051,0.24948457,105030.0,105020.0,0.1999619]
[1750321302271,0.24948457,105030.0,105020.0,0.20948353]
[1750321303579,0.24948457,105030.0,105020.0,0.2285267]
[1750321303580,0.22198457,105030.0,105020.0,0.2285267]
[1750321304231,0.22398457,105030.0,105020.0,0.22852679]
[1750321306699,0.22398457,105030.0,105020.0,0.20948362]
[1750321306903,0.25658457,105030.0,105020.0,0.20948362]
[1750321308140,0.22398457,105030.0,105020.0,0.20948362]
[1750321308338,0.21446376,105030.0,105020.0,0.20948362]
[1750321309589,0.21446376,105030.0,105020.0,0.1999619]
[1750321309825,0.40494286,105030.0,105020.0,0.2094838]
[1750321310056,0.20494286,105030.0,105020.0,0.21900561]
[1750321310710,0.20494286,105030.0,105020.0,0.22852733]
[1750321312049,0.20494286,105030.0,105020.0,0.26112733]
[1750321312490,0.20494286,105030.0,105020.0,0.27064887]
[1750321314184,0.20494286,105030.0,105020.0,0.27064824]
[1750321314185,0.02404189,105030.0,105020.0,0.27064824]
[1750321314415,0.22404189,105030.0,105020.0,0.30144824]
[1750321315198,0.21452054,105030.0,105020.0,0.30144824]
[1750321315464,0.23356162,105030.0,105020.0,0.30144824]
[1750321316220,0.22856162,105030.0,105020.0,0.30144824]
[1750321316558,0.24008252,105030.0,105020.0,0.30144824]
[1750321317234,0.24960351,105030.0,105020.0,0.30144824]
[1750321317995,0.24008252,105030.0,105020.0,0.30144824]
[1750321318212,0.20650654,105030.0,105020.0,0.30144824]
[1750321318949,0.2255478,105030.0,105020.0,0.30144824]
[1750321319338,0.00952054,105030.0,105020.0,0.30144824]
[1750321319521,0.20952054,105030.0,105020.0,0.30144824]
[1750321320142,0.20952027,105030.0,105020.0,0.30144824]
[1750321320352,0.21904081,105030.0,105020.0,0.30144824]
[1750321321006,0.01904081,105030.0,105020.0,0.30144824]
[1750321321861,0.21904081,105030.0,105020.0,0.30144824]
[1750321322477,0.02856153,105030.0,105020.0,0.30144824]
[1750321323483,0.07930953,105040.0,105030.0,0.04162108]
[1750321323700,0.05644468,105040.0,105030.0,0.23204286]
[1750321323914,0.25644468,105040.0,105030.0,0.24156376]
[1750321324126,0.27930953,105040.0,105030.0,0.24156376]
[1750321324760,0.28230953,105040.0,105030.0,0.24156376]
[1750321325392,0.28230953,105040.0,105030.0,0.23204286]
[1750321325609,0.28230953,105040.0,105030.0,0.25108475]
[1750321327666,0.31091985,105040.0,105030.0,0.25108475]
[1750321328489,0.46439985,105040.0,105030.0,0.26060556]
[1750321331980,0.46439985,105040.0,105030.0,0.29120556]
[1750321332189,0.46439985,105040.0,105030.0,0.28168475]
[1750321332607,0.20795517,105040.0,105030.0,0.28168475]
[1750321332830,0.40795517,105040.0,105030.0,0.28168475]
[1750321333055,0.398389,105040.0,105030.0,0.28168475]
[1750321333300,0.398389,105040.0,105030.0,0.25108475]
[1750321333534,0.398389,105040.0,105030.0,0.0321]
[1750321333758,0.398389,105040.0,105020.0,0.28440417]
[1750321333980,0.01904117,105030.0,105020.0,0.28440417]
[1750321334197,0.02856198,105030.0,105020.0,0.2748829]
[1750321334452,0.03808378,105030.0,105020.0,0.2748829]
[1750321335280,0.03908378,105030.0,105020.0,0.2748829]
[1750321335494,0.03908333,105030.0,105020.0,0.2748829]
[1750321337392,0.03821933,105030.0,105020.0,0.2748829]
[1750321338925,0.02004144,105030.0,105020.0,0.2748829]
[1750321339506,0.02956234,105030.0,105020.0,0.2748829]
[1750321342247,0.02004099,105030.0,105020.0,0.2748829]
[1750321342468,0.0295618,105030.0,105020.0,0.2748829]
[1750321343105,0.0390827,105030.0,105020.0,0.2748829]
[1750321343617,0.0295618,105030.0,105020.0,0.2748829]
[1750321345000,0.0390827,105030.0,105020.0,0.2748829]
[1750321346016,0.0295618,105030.0,105020.0,0.2748829]
[1750321347267,0.02004099,105030.0,105020.0,0.2748829]
[1750321347558,0.001,105030.0,105020.0,0.2748829]
[1750321347771,0.02004108,105030.0,105020.0,0.2748829]
[1750321352099,0.01052045,105030.0,105020.0,0.2748829]
[1750321352499,0.02004108,105030.0,105020.0,0.2748829]
[1750321355526,0.02956189,105030.0,105020.0,0.2748829]
[1750321356018,0.02004108,105030.0,105020.0,0.2748829]
[1750321356242,0.02956189,105030.0,105020.0,0.2748829]
[1750321356448,0.02004108,105030.0,105020.0,0.2748829]
[1750321357089,0.02956189,105030.0,105020.0,0.2748829]
[1750321357525,0.02004108,105030.0,105020.0,0.2748829]
[1750321357729,0.02956189,105030.0,105020.0,0.2748829]
[1750321358578,0.02004108,105030.0,105020.0,0.2748829]
[1750321359170,0.0295618,105030.0,105020.0,0.2748829]
[1750321359686,0.0390827,105030.0,105020.0,0.2748829]
[1750321363095,0.04860369,105030.0,105020.0,0.4283629]
[1750321365096,0.22950502,105030.0,105020.0,0.42836344]
[1750321366219,0.22950502,105030.0,105020.0,0.43788498]
[1750321367217,0.22950502,105030.0,105020.0,0.21900498]
[1750321367516,0.21998439,105030.0,105020.0,0.37248498]
[1750321367727,0.21998439,105030.0,105020.0,0.40548498]
[1750321368831,0.21046367,105030.0,105020.0,0.39596362]
[1750321369035,0.21046367,105030.0,105020.0,0.40548534]
[1750321369190,0.21046367,105030.0,105020.0,0.25200534]
[1750321370091,0.20094277,105030.0,105020.0,0.25200534]
[1750321370917,0.20094277,105030.0,105020.0,0.21900534]
[1750321371139,0.19142178,105030.0,105020.0,0.19996181]
[1750321371346,0.19142178,105030.0,105020.0,0.23296181]
[1750321373054,0.19142178,105030.0,105020.0,0.24248362]
[1750321373274,0.19142178,105030.0,105020.0,0.25200534]
[1750321373694,0.19142178,105030.0,105020.0,0.28490534]
[1750321378868,0.19142178,105030.0,105020.0,0.29442688]
[1750321383869,0.19142178,105030.0,105020.0,0.28490534]
[1750321384082,0.19142178,105030.0,105020.0,0.29442697]
[1750321384504,0.20094268,105030.0,105020.0,0.30394851]
[1750321386501,0.20094268,105030.0,105020.0,0.29442697]
[1750321399272,0.20094268,105030.0,105020.0,0.30394851]
[1750321400977,0.20094268,105030.0,105020.0,0.30394806]
[1750321401217,0.2199843,105030.0,105020.0,0.30394806]
[1750321401750,0.02956252,105030.0,105020.0,0.30394761]
[1750321403511,0.0390836,105030.0,105020.0,0.30394761]
[1750321405248,0.22950538,105030.0,105020.0,0.29442625]
[1750321407887,0.22950538,105030.0,105020.0,0.30394761]
[1750321410130,0.02956252,105030.0,105020.0,0.30394761]
[1750321411552,0.22950538,105030.0,105020.0,0.30394761]
[1750321412063,0.22950538,105030.0,105020.0,0.29442625]
[1750321417698,0.22815738,105030.0,105020.0,0.29442625]
[1750321419484,0.21863675,105030.0,105020.0,0.2658619]
[1750321419698,0.20946385,105030.0,105020.0,0.28490543]
[1750321420044,0.20946385,105030.0,105020.0,0.27538371]
[1750321420624,0.19994286,105030.0,105020.0,0.27538371]
[1750321421340,0.19042178,105030.0,105020.0,0.27538371]
[1750321423014,0.19042178,105030.0,105010.0,0.0332]
[1750321423242,0.00952226,105010.0,105000.0,0.69714624]
[1750321423470,0.00952226,105010.0,105000.0,0.25224624]
[1750321423693,0.00952226,105010.0,105000.0,0.40564624]
[1750321424379,0.01904479,105010.0,105000.0,0.40564624]
[1750321424595,0.00952226,105010.0,105000.0,0.40964624]
[1750321424815,0.40948362,105020.0,105010.0,0.20950321]
[1750321425040,0.21904371,105020.0,105010.0,0.24270321]
[1750321425256,0.21904371,105020.0,105010.0,0.25222547]
[1750321425470,0.21904326,105020.0,105010.0,0.25222547]
[1750321426099,0.21904326,105020.0,105010.0,0.28272547]
[1750321426509,0.2285648,105020.0,105010.0,0.28372547]
[1750321427112,0.2285648,105020.0,105010.0,0.28572547]
[1750321427575,0.23808597,105020.0,105010.0,0.28572547]
[1750321429291,0.24760787,105020.0,105010.0,0.28572547]
[1750321430132,0.24760869,105020.0,105010.0,0.28572547]
[1750321430664,0.42852715,105020.0,105010.0,0.27620321]
[1750321432706,0.42852715,105020.0,105010.0,0.28572556]
[1750321433156,0.42852715,105020.0,105010.0,0.27620321]
[1750321434810,0.41900561,105020.0,105010.0,0.28572593]
[1750321435233,0.41900561,105020.0,105010.0,0.30477072]
[1750321436664,0.41900561,105020.0,105010.0,0.29524837]
[1750321439480,0.41900561,105020.0,105010.0,0.30477072]
[1750321440632,0.20952154,105020.0,105010.0,0.30477026]
[1750321440849,0.21904281,105020.0,105010.0,0.30477026]
[1750321441062,0.23808634,105020.0,105010.0,0.30477026]
[1750321441272,0.23808598,105020.0,105010.0,0.30477026]
[1750321444159,0.22856426,105020.0,105010.0,0.30477026]
[1750321444812,0.00408466,105020.0,105010.0,0.30477026]
[1750321445030,0.20408466,105020.0,105010.0,0.30477026]
[1750321445237,0.22312765,105020.0,105010.0,0.30477026]
[1750321446284,0.23264946,105020.0,105010.0,0.30477026]
[1750321446508,0.23264928,105020.0,105010.0,0.30477026]
[1750321447485,0.24217109,105020.0,105010.0,0.30477026]
[1750321447745,0.23264928,105020.0,105010.0,0.30477026]
[1750321449389,0.22312756,105020.0,105010.0,0.30477026]
[1750321449939,0.23264928,105020.0,105010.0,0.30477026]
[1750321450359,0.24217109,105020.0,105010.0,0.30477026]
[1750321450638,0.23264928,105020.0,105010.0,0.30477026]
[1750321451929,0.24217109,105020.0,105010.0,0.30477026]
[1750321452146,0.22312756,105020.0,105010.0,0.30477026]
[1750321453019,0.22312738,105020.0,105010.0,0.30477026]
[1750321453229,0.23264901,105020.0,105010.0,0.30477026]
[1750321453448,0.23241815,105020.0,105010.0,0.30477026]
[1750321453674,0.22289652,105020.0,105010.0,0.30477026]
[1750321454357,0.23241815,105020.0,105010.0,0.30477026]
[1750321455349,0.22289652,105020.0,105010.0,0.30477026]
[1750321455574,0.23241815,105020.0,105010.0,0.30477026]
[1750321456403,0.24193987,105020.0,105010.0,0.30477026]
[1750321456550,0.23241815,105020.0,105010.0,0.30477026]
[1750321461543,0.22289652,105020.0,105010.0,0.30477026]
[1750321461804,0.23241815,105020.0,105010.0,0.30477026]
[1750321465025,0.22289652,105020.0,105010.0,0.30477026]
[1750321466976,0.23241815,105020.0,105010.0,0.30477026]
[1750321467867,0.22289652,105020.0,105010.0,0.30477026]
[1750321468263,0.23241806,105020.0,105010.0,0.30477026]
[1750321468531,0.22289652,105020.0,105010.0,0.30477026]
[1750321471581,0.00952045,105030.0,105020.0,0.2190048]
[1750321471854,0.22856189,105030.0,105020.0,0.4327648]
[1750321472071,0.23808279,105030.0,105020.0,0.4327648]
[1750321472305,0.22856189,105030.0,105020.0,0.4327648]
[1750321472544,0.23808279,105030.0,105020.0,0.4327648]
[1750321474415,0.24760378,105030.0,105020.0,0.4327648]
[1750321480318,0.04760378,105030.0,105020.0,0.4327648]
[1750321480547,0.24760378,105030.0,105020.0,0.4327648]
[1750321480785,0.04760378,105030.0,105020.0,0.4327648]
[1750321481873,0.24760378,105030.0,105020.0,0.4327648]
[1750321482990,0.03808279,105030.0,105020.0,0.4327648]
[1750321483203,0.04760378,105030.0,105020.0,0.4327648]
[1750321483899,0.24760378,105030.0,105020.0,0.4327648]
[1750321484112,0.24760441,105030.0,105020.0,0.4327648]
[1750321484540,0.24760441,105030.0,105020.0,0.42324344]
[1750321484766,0.04760441,105030.0,105020.0,0.43276498]
[1750321485699,0.24760441,105030.0,105020.0,0.43276498]
[1750321485938,0.43802619,105030.0,105020.0,0.43276498]
[1750321486167,0.22850556,105030.0,105020.0,0.43276498]
[1750321487090,0.22850556,105030.0,105020.0,0.42324344]
[1750321487296,0.40946385,105030.0,105020.0,0.41372181]
[1750321487506,0.40946385,105030.0,105020.0,0.42324362]
[1750321488322,0.40946385,105030.0,105020.0,0.43276534]
[1750321488989,0.19996163,105020.0,105010.0,0.27270293]
[1750321489197,0.01904335,105020.0,105010.0,0.43554565]
[1750321489397,0.02856516,105020.0,105010.0,0.43554565]
[1750321490125,0.02856516,105020.0,105010.0,0.43654565]
[1750321490405,0.0285648,105020.0,105010.0,0.43654565]
[1750321490949,0.03808661,105020.0,105010.0,0.43654565]
[1750321491437,0.03808661,105020.0,105010.0,0.43854565]
[1750321492259,0.04760851,105020.0,105010.0,0.43854565]
[1750321496507,0.03808661,105020.0,105010.0,0.43854565]
[1750321498310,0.04760851,105020.0,105010.0,0.43854565]
[1750321498515,0.38760851,105020.0,105010.0,0.43854565]
[1750321500607,0.04760851,105020.0,105010.0,0.43854565]
[1750321500847,0.38760851,105020.0,105010.0,0.43854565]
[1750321502475,0.38760851,105020.0,105010.0,0.26618086]
[1750321502476,0.57804896,105020.0,105010.0,0.26618086]
[1750321502706,0.55900561,105020.0,105010.0,0.21250358]
[1750321502916,0.5399619,105020.0,105010.0,0.15632]
[1750321504027,0.5399619,105020.0,105010.0,0.1658429]
[1750321505830,0.5399619,105020.0,105010.0,0.0125229]
[1750321506095,0.1999619,105020.0,105010.0,0.0125229]
[1750321506832,0.1999619,105020.0,105010.0,0.003]
[1750321509758,0.5399619,105020.0,105010.0,0.003]
[1750321510930,0.5399619,105020.0,105010.0,0.0125229]
[1750321512000,0.53043991,105020.0,105010.0,0.003]
[1750321517127,0.34,105020.0,105010.0,0.003]
[1750321517776,0.53043991,105020.0,105010.0,0.003]
[1750321519742,0.53043991,105020.0,105010.0,0.01252281]
[1750321520178,0.53043991,105020.0,105010.0,0.20298086]
[1750321521689,0.53043991,105020.0,105010.0,0.21250358]
[1750321523138,0.53043991,105020.0,105010.0,0.0125229]
[1750321523369,0.53043991,105020.0,105010.0,0.20298095]
[1750321523812,0.53043991,105020.0,105010.0,0.0125229]
[1750321524089,0.53043991,105020.0,105010.0,0.003]
[1750321524440,0.53043991,105020.0,105010.0,0.0125229]
[1750321524667,0.53043991,105020.0,105010.0,0.003]
[1750321525811,0.53043991,105020.0,105010.0,0.0125229]
[1750321526234,0.53043991,105020.0,105010.0,0.20298095]
[1750321526451,0.53043991,105020.0,105010.0,0.21250376]
[1750321528027,0.5399619,105020.0,105010.0,0.29614892]
[1750321528432,0.53996163,105020.0,105010.0,0.29614892]
[1750321528688,0.54948344,105020.0,105010.0,0.29614892]
[1750321528897,0.54948344,105020.0,105010.0,0.28662639]
[1750321529318,0.53996172,105020.0,105010.0,0.27710376]
[1750321529531,0.53996172,105020.0,105010.0,0.28662648]
[1750321529741,0.53996172,105020.0,105010.0,0.29614911]
[1750321531903,0.53996172,105020.0,105010.0,0.28662648]
[1750321533157,0.562832,105020.0,105010.0,0.28662648]
[1750321534929,0.562832,105020.0,105010.0,0.29614911]
[1750321538805,0.562832,105020.0,105010.0,0.30567164]
[1750321539015,0.40095689,105020.0,105010.0,0.30567118]
[1750321539472,0.40095689,105020.0,105010.0,0.30567072]
[1750321539932,0.40095689,105020.0,105010.0,0.30567026]
[1750321540369,0.5913968,105020.0,105010.0,0.296148]
[1750321540920,0.5913968,105020.0,105010.0,0.30567026]
[1750321540921,0.3914349,105020.0,105010.0,0.30567026]
[1750321541249,0.4009568,105020.0,105010.0,0.30567026]
[1750321541803,0.38191309,105020.0,105010.0,0.30567026]
[1750321542014,0.36856453,105020.0,105010.0,0.30567026]
[1750321545504,0.37808634,105020.0,105010.0,0.30567026]
[1750321545721,0.35904281,105020.0,105010.0,0.30567026]
[1750321545949,0.36856453,105020.0,105010.0,0.30567026]
[1750321548924,0.37808634,105020.0,105010.0,0.30567026]
[1750321550822,0.36856453,105020.0,105010.0,0.30567026]
[1750321553092,0.37808634,105020.0,105010.0,0.30567026]
[1750321555989,0.36856453,105020.0,105010.0,0.30567026]
[1750321556203,0.36856444,105020.0,105010.0,0.30567026]
[1750321556414,0.37808625,105020.0,105010.0,0.30567026]
[1750321560599,0.36856444,105020.0,105010.0,0.30567026]
[1750321560823,0.37808616,105020.0,105010.0,0.30567026]
[1750321561795,0.36856444,105020.0,105010.0,0.30567026]
[1750321562231,0.32061758,105040.0,105020.0,0.2497904]
[1750321562481,0.45139499,105040.0,105030.0,0.23074277]
[1750321562708,0.19042178,105030.0,105020.0,0.42532913]
[1750321562932,0.00952045,105030.0,105020.0,0.43485049]
[1750321563162,0.01904144,105030.0,105020.0,0.43485049]
[1750321564548,0.02856234,105030.0,105020.0,0.43485049]
[1750321565644,0.37808306,105030.0,105020.0,0.43485049]
[1750321566553,0.38760342,105030.0,105020.0,0.43485049]
[1750321573326,0.38760414,105030.0,105020.0,0.43485049]
[1750321575171,0.37808306,105030.0,105020.0,0.43485049]
[1750321579357,0.38760414,105030.0,105020.0,0.43485049]
[1750321582878,0.37808306,105030.0,105020.0,0.43485049]
[1750321589319,0.36856207,105030.0,105020.0,0.43485049]
[1750321591417,0.37808306,105030.0,105020.0,0.43485049]
[1750321595508,0.36856207,105030.0,105020.0,0.43485049]
[1750321599831,0.35904108,105030.0,105020.0,0.43485049]
[1750321601106,0.34952045,105030.0,105020.0,0.43485049]
[1750321601307,0.35904108,105030.0,105020.0,0.43485049]
[1750321601521,0.21904,105040.0,105030.0,0.24988421]
[1750321601731,0.24124961,105040.0,105030.0,0.24988421]
[1750321601931,0.25084596,105040.0,105030.0,0.24988421]
[1750321602376,0.25084596,105040.0,105030.0,0.21898421]
[1750321602794,0.25384596,105040.0,105030.0,0.21898421]
[1750321603974,0.26336614,105040.0,105030.0,0.21898421]
[1750321604999,0.60336614,105040.0,105030.0,0.21898421]
[1750321605205,0.40336571,105040.0,105030.0,0.21898421]
[1750321606779,0.40336571,105040.0,105030.0,0.25218421]
[1750321606997,0.36587174,105040.0,105030.0,0.29210466]
[1750321607211,0.343,105040.0,105030.0,0.29210466]
[1750321608563,0.341,105040.0,105030.0,0.29210466]
[1750321608998,0.34,105040.0,105030.0,0.29210466]
[1750321609651,0.34,105040.0,105030.0,0.29410466]
[1750321610092,0.34,105040.0,105030.0,0.29510466]
[1750321612686,0.34951936,105040.0,105030.0,0.29510466]
[1750321612899,0.34,105040.0,105030.0,0.29510466]
[1750321613202,0.34951945,105040.0,105030.0,0.29510466]
[1750321614239,0.35903908,105040.0,105030.0,0.29510466]
[1750321615290,0.34951945,105040.0,105030.0,0.29510466]
[1750321615503,0.35903899,105040.0,105030.0,0.29510466]
[1750321615711,0.35903899,105040.0,105030.0,0.44838466]
[1750321615895,0.36855862,105040.0,105030.0,0.44838466]
[1750321616107,0.35903899,105040.0,105030.0,0.44838466]
[1750321618357,0.36855871,105040.0,105030.0,0.44838466]
[1750321618693,0.35903899,105040.0,105030.0,0.44838466]
[1750321621814,0.34951945,105040.0,105030.0,0.44838466]
[1750321622027,0.35903908,105040.0,105030.0,0.44838466]
[1750321622254,0.34,105040.0,105030.0,0.44838466]
[1750321622486,0.34951945,105040.0,105030.0,0.44838466]
[1750321623427,0.22653465,105050.0,105040.0,0.21896337]
[1750321623862,0.22653465,105050.0,105040.0,0.20944374]
[1750321624096,0.21701547,105050.0,105040.0,0.20944392]
[1750321624216,0.02855935,105040.0,105030.0,0.26654259]
[1750321624448,0.02855889,105040.0,105030.0,0.43686376]
[1750321625065,0.0380788,105040.0,105030.0,0.44638484]
[1750321625699,0.0380788,105040.0,105030.0,0.44538484]
[1750321626340,0.23800318,105040.0,105030.0,0.37226439]
[1750321626561,0.22848355,105040.0,105030.0,0.37226439]
[1750321627020,0.56848355,105040.0,105030.0,0.37326439]
[1750321627996,0.56848355,105040.0,105030.0,0.37526439]
[1750321629608,0.56848355,105040.0,105030.0,0.22198439]
[1750321629801,0.59096383,105040.0,105030.0,0.37526457]
[1750321630015,0.59096383,105040.0,105030.0,0.38478529]
[1750321630475,0.58144392,105040.0,105030.0,0.20294286]
[1750321630693,0.61304392,105040.0,105030.0,0.21246385]
[1750321630943,0.61304392,105040.0,105030.0,0.37522475]
[1750321632093,0.54944392,105040.0,105030.0,0.38474556]
[1750321632312,0.53992383,105040.0,105030.0,0.37522475]
[1750321635248,0.53992383,105040.0,105030.0,0.38474556]
[1750321635468,0.53992383,105040.0,105030.0,0.39426619]
[1750321637559,0.53992383,105040.0,105030.0,0.38474556]
[1750321641224,0.53992383,105040.0,105030.0,0.37522475]
[1750321643847,0.53992383,105040.0,105030.0,0.38474556]
[1750321646988,0.53992383,105040.0,105030.0,0.23150556]
[1750321647208,0.02856461,105020.0,105010.0,0.0642]
[1750321647432,0.54950303,105010.0,105000.0,0.23199954]
[1750321647641,0.54950303,105010.0,104990.0,0.48209433]
[1750321647642,0.02856996,105000.0,104990.0,0.25076702]
[1750321647851,0.01904643,105000.0,104990.0,0.40400702]
[1750321648066,0.54950358,105010.0,104990.0,0.40400702]
[1750321648275,0.54950358,105010.0,105000.0,0.19999981]
[1750321648488,0.54950358,105010.0,105000.0,0.35323981]
[1750321648672,0.54950358,105010.0,105000.0,0.3532399]
[1750321648910,0.56145805,105010.0,105000.0,0.15324]
[1750321649542,0.56145805,105010.0,105000.0,0.1627638]
[1750321649779,0.56145805,105010.0,105000.0,0.1687638]
[1750321650532,0.56145805,105010.0,105000.0,0.35923999]
[1750321651063,0.56145805,105010.0,105000.0,0.20599999]
[1750321651305,0.56145805,105010.0,105000.0,0.35927999]
[1750321651539,0.56145805,105010.0,105000.0,0.1688038]
[1750321651763,0.56145805,105010.0,105000.0,0.15928]
[1750321653151,0.56145805,105010.0,105000.0,0.006]
[1750321655990,0.56145805,105010.0,105000.0,0.0155238]
[1750321656182,0.56145805,105010.0,105000.0,0.006]
[1750321657861,0.53045805,105010.0,105000.0,0.006]
[1750321658909,0.53045805,105010.0,105000.0,0.0155238]
[1750321659802,0.36856779,105010.0,105000.0,0.23457085]
[1750321660026,0.35904498,105010.0,105000.0,0.27449366]
[1750321660231,0.3685677,105010.0,105000.0,0.27449366]
[1750321660668,0.56854865,105010.0,105000.0,0.0364]
[1750321660906,0.56854865,105010.0,105000.0,0.23639981]
[1750321661125,0.5590263,105010.0,105000.0,0.23639981]
[1750321661794,0.5590263,105010.0,105000.0,0.24592334]
[1750321662458,0.54950367,105010.0,105000.0,0.23639981]
[1750321662886,0.54950367,105010.0,105000.0,0.22687619]
[1750321663117,0.54950367,105010.0,105000.0,0.23639999]
[1750321663909,0.54950367,105010.0,105000.0,0.20599999]
[1750321664121,0.53998095,105010.0,105000.0,0.20599999]
[1750321664620,0.53045805,105010.0,105000.0,0.006]
[1750321665383,0.56185805,105010.0,105000.0,0.006]
[1750321665847,0.19999981,105000.0,104990.0,0.35363853]
[1750321667279,0.19999981,105000.0,104990.0,0.35863871]
[1750321667926,0.53047619,105000.0,104990.0,0.16814471]
[1750321668374,0.53047619,105000.0,104990.0,0.17114471]
[1750321670088,0.53047619,105000.0,104990.0,0.16162]
[1750321670859,0.53042819,105000.0,104990.0,0.16162]
[1750321671324,0.53042819,105000.0,104990.0,0.0081]
[1750321672410,0.53042819,105000.0,104990.0,0.0051]
[1750321672874,0.53042819,105000.0,104990.0,0.0061]
[1750321673307,0.53042819,105000.0,104990.0,0.0011]
[1750321673738,0.53042819,105000.0,104990.0,0.0021]
[1750321673972,0.53042819,105000.0,104990.0,0.01162471]
[1750321674229,0.53042819,105000.0,104990.0,0.24274366]
[1750321674661,0.53042819,105000.0,104990.0,0.25226819]
[1750321674879,0.53047619,105000.0,104990.0,0.26179263]
[1750321675093,0.53999981,105000.0,104990.0,0.30431698]
[1750321675312,0.54952316,105000.0,104990.0,0.30431698]
[1750321675958,0.53999981,105000.0,104990.0,0.28526819]
[1750321677521,0.53047619,105000.0,104990.0,0.0332]
[1750321678193,0.53047619,105000.0,104990.0,0.04272471]
[1750321679423,0.53047619,105000.0,104990.0,0.05224933]
[1750321679640,0.53047619,105000.0,104990.0,0.24274366]
[1750321681048,0.39047619,105000.0,104990.0,0.24274366]
[1750321682746,0.39047619,105000.0,104990.0,0.25226819]
[1750321684520,0.39047619,105000.0,104990.0,0.26179263]
[1750321685242,0.39047619,105000.0,104990.0,0.27131698]
[1750321686489,0.39047619,105000.0,104990.0,0.26179263]
[1750321688806,0.54,105000.0,104990.0,0.29419263]
[1750321689033,0.35904652,105000.0,104990.0,0.30371635]
[1750321689927,0.36857005,105000.0,104990.0,0.30371635]
[1750321690493,0.35904652,105000.0,104990.0,0.30371635]
[1750321693176,0.35904616,105000.0,104990.0,0.30371635]
[1750321693805,0.36856951,105000.0,104990.0,0.30371635]
[1750321694215,0.35904616,105000.0,104990.0,0.30371635]
[1750321694636,0.36856942,105000.0,104990.0,0.30371635]
[1750321696451,0.37809277,105000.0,104990.0,0.30371635]
[1750321697536,0.3876163,105000.0,104990.0,0.30371635]
[1750321697746,0.37809277,105000.0,104990.0,0.30371635]
[1750321697958,0.38761621,105000.0,104990.0,0.30371635]
[1750321700790,0.38761684,105000.0,104990.0,0.30371635]
[1750321701504,0.37809322,105000.0,104990.0,0.30371635]
[1750321702030,0.38761684,105000.0,104990.0,0.30371635]
[1750321703737,0.38761675,105000.0,104990.0,0.30371635]
[1750321704422,0.3876172,105000.0,104990.0,0.30371635]
[1750321705141,0.37809358,105000.0,104990.0,0.30371635]
[1750321708205,0.3876172,105000.0,104990.0,0.30371635]
[1750321709015,0.57809339,105000.0,104990.0,0.29419227]
[1750321709214,0.56857058,105000.0,104990.0,0.25226792]
[1750321709581,0.56857058,105000.0,104990.0,0.26179227]
[1750321710571,0.55904714,105000.0,104990.0,0.26179227]
[1750321711783,0.54952361,105000.0,104990.0,0.25226792]
[1750321711998,0.54952361,105000.0,104990.0,0.26179227]
[1750321714164,0.54952361,105000.0,104990.0,0.25226792]
[1750321715215,0.54718835,105000.0,104990.0,0.25226792]
[1750321715907,0.54718835,105000.0,104990.0,0.26179227]
[1750321718133,0.54718835,105000.0,104990.0,0.25226792]
[1750321720298,0.54718835,105000.0,104990.0,0.26179227]
[1750321721229,0.20952361,105000.0,104990.0,0.26179227]
[1750321721434,0.20952361,105000.0,104990.0,0.27131653]
[1750321722512,0.20952361,105000.0,104990.0,0.27131608]
[1750321723697,0.01904742,105000.0,104990.0,0.27131608]
[1750321724517,0.01904742,105000.0,104990.0,0.27131563]
[1750321724821,0.20952361,105000.0,104990.0,0.26179155]
[1750321725720,0.01904742,105000.0,104990.0,0.26179155]
[1750321725925,0.01904697,105000.0,104990.0,0.27131563]
[1750321726694,0.00952308,105000.0,104990.0,0.27131563]
[1750321726981,0.37809331,105000.0,104990.0,0.30181563]
[1750321727206,0.37809322,105000.0,104990.0,0.30181563]
[1750321730050,0.36856969,105000.0,104990.0,0.30181563]